bitfinex/quotes_ETHUSD_20250210
["timestamp","ask_amount","ask_price","bid_price","bid_amount"]
[1739194931205,3.7635,2657.1,2656.0,0.7751]
[1739194931403,3.7646,2656.4,2656.0,0.7751]
[1739194931555,7.52921,2656.4,2656.1,0.09717655]
[1739194931764,3.7646,2656.4,2656.1,0.09717655]
[1739194931965,3.76427,2656.6,2656.1,3.86207655]
[1739194932159,3.76427,2656.6,2656.1,0.09717655]
[1739194932377,3.76427,2656.6,2656.1,3.86205655]
[1739194932658,3.76356,2657.1,2656.5,3.76432]
[1739194932989,3.76356,2657.1,2656.6,4.63622667]
[1739194933561,3.76348,2657.2,2656.7,3.76404]
[1739194933758,7.52692,2657.2,2656.6,4.63622667]
[1739194933963,3.76344,2657.2,2656.7,0.09686466]
[1739194934181,3.76343,2657.2,2656.7,0.09686466]
[1739194934387,3.76343,2657.2,2656.7,3.86089466]
[1739194935091,3.76343,2657.2,2656.7,0.09686466]
[1739194935291,3.76366,2657.0,2656.7,0.09686466]
[1739194935899,0.773,2657.6,2656.7,0.09686466]
[1739194935900,3.76392,2656.8,2656.7,0.09686466]
[1739194936402,3.76388,2656.9,2656.7,0.09686466]
[1739194936693,0.773,2657.6,2656.8,0.7639]
[1739194936900,3.76288,2657.6,2657.0,3.76353]
[1739194937262,3.76296,2657.5,2657.1,0.09638127]
[1739194938202,3.0,2657.8,2656.8,4.52768]
[1739194938503,3.76302,2657.5,2656.9,0.09652526]
[1739194938682,3.76307,2657.4,2656.9,0.09652526]
[1739194939002,3.76344,2657.2,2656.9,0.09652526]
[1739194939299,3.76323,2657.3,2656.9,0.09652526]
[1739194939964,3.76323,2657.3,2656.8,0.7639]
[1739194940165,3.76341,2657.2,2656.9,0.09652526]
[1739194940815,3.76336,2657.2,2656.9,0.09652526]
[1739194941621,3.76342,2657.2,2656.9,0.09652526]
[1739194941819,3.76364,2657.0,2656.9,0.09652526]
[1739194942013,3.76364,2657.0,2656.5,8.2924]
[1739194942320,3.76364,2657.0,2656.6,0.09659099]
[1739194943689,3.76378,2656.9,2656.6,0.09659099]
[1739194943885,2.55091932,2657.3,2656.1,4.52871]
[1739194944085,3.76435,2656.5,2656.2,0.09687909]
[1739194944309,3.76463,2656.3,2656.2,0.09687909]
[1739194944686,3.76474,2656.3,2655.8,0.7639]
[1739194944891,3.76459,2656.4,2655.9,0.09709522]
[1739194945127,3.76464,2656.3,2655.9,0.09709522]
[1739194945581,7.52917,2656.4,2655.9,0.09709522]
[1739194945776,3.76458,2656.4,2655.9,7.62727522]
[1739194946005,3.76426,2656.6,2655.9,3.86216522]
[1739194946200,3.76435,2656.5,2656.0,3.76504]
[1739194946410,0.773,2657.2,2656.8,3.76392]
[1739194946608,3.76301,2657.5,2656.8,3.76383]
[1739194946912,3.76301,2657.5,2657.0,3.76362]
[1739194947278,3.76274,2657.7,2657.1,0.09623099]
[1739194947485,3.7628,2657.6,2657.1,0.09623099]
[1739194947698,3.7628,2657.6,2657.1,3.85963099]
[1739194948015,3.7628,2657.6,2657.1,0.09623099]
[1739194948392,3.0,2657.8,2657.3,4.52704]
[1739194948582,3.0,2657.8,2657.4,0.09601505]
[1739194949090,3.76252,2657.8,2657.4,0.09601505]
[1739194949288,3.76225,2658.0,2657.5,3.76283]
[1739194949507,3.005,2658.1,2657.6,0.09587112]
[1739194949813,0.005,2658.1,2657.6,0.09587112]
[1739194950120,0.005,2658.1,2658.0,4.52612]
[1739194950325,0.005,2658.1,2658.0,4.56197218]
[1739194950485,0.005,2658.1,2658.0,4.65755551]
[1739194951317,0.005,2658.1,2658.0,5.20755551]
[1739194951495,0.005,2658.1,2658.0,5.17170333]
[1739194952092,0.005,2658.1,2658.0,4.62170333]
[1739194952629,0.005,2658.1,2658.0,4.65931452]
[1739194952915,0.005,2658.1,2658.0,5.20931452]
[1739194953142,0.005,2658.1,2658.0,17.06931452]
[1739194953286,0.01,2658.9,2658.5,3.7615]
[1739194953486,0.01,2658.9,2658.8,4.52499]
[1739194953686,0.01,2658.9,2658.8,0.85818714]
[1739194954108,0.01,2658.9,2658.8,0.09428714]
[1739194954307,3.77095,2658.9,2658.8,0.09428714]
[1739194954500,3.77095,2658.9,2658.3,0.7639]
[1739194954701,3.76116,2658.8,2658.3,0.7639]
[1739194954901,3.77095,2658.9,2658.4,0.09457477]
[1739194955229,3.77099,2658.9,2658.4,0.09457477]
[1739194955397,3.76162,2658.5,2657.8,3.76247]
[1739194955603,3.76186,2658.3,2657.9,0.09404836]
[1739194955797,3.76186,2658.3,2657.7,3.76261]
[1739194956005,3.76186,2658.3,2657.8,0.0941203]
[1739194956227,3.76186,2658.3,2657.7,3.76261]
[1739194956425,3.76143,2658.6,2657.8,0.0941203]
[1739194956595,3.76143,2658.6,2658.0,3.76221]
[1739194956793,3.76143,2658.6,2658.1,0.09402456]
[1739194957211,3.76129,2658.7,2658.1,0.09402456]
[1739194957412,3.76153,2658.5,2658.1,0.09402456]
[1739194957618,3.76129,2658.7,2658.1,0.09402456]
[1739194958436,3.77102,2658.9,2658.3,3.7618]
[1739194958641,3.77102,2658.9,2658.4,0.0939489]
[1739194958804,3.77102,2658.9,2658.4,3.8555689]
[1739194959399,3.77097,2658.9,2658.4,3.8555689]
[1739194959830,3.77097,2658.9,2658.4,0.0939489]
[1739194960030,3.77097,2658.9,2658.3,3.76178]
[1739194960334,3.77097,2658.9,2658.4,0.0939489]
[1739194960539,0.01,2658.9,2658.4,0.0939489]
[1739194960830,0.01,2658.9,2658.8,3.76109]
[1739194960998,0.01,2658.9,2658.8,3.85457614]
[1739194961394,0.01,2658.9,2658.8,4.65837614]
[1739194961832,1e-05,2658.9,2658.8,4.65837614]
[1739194962095,1e-05,2658.9,2658.8,7.69597875]
[1739194962429,1e-05,2658.9,2658.8,17.06837614]
[1739194964521,1e-05,2658.9,2658.8,0.89728614]
[1739194964919,1e-05,2658.9,2658.8,0.09348614]
[1739194965300,1e-05,2658.9,2658.7,3.76121]
[1739194965495,1e-05,2658.9,2658.8,3.85039936]
[1739194966119,1e-05,2658.9,2658.8,4.65419936]
[1739194966340,1e-05,2658.9,2658.8,4.69180255]
[1739194966541,1e-05,2658.9,2658.8,4.65419936]
[1739194966918,1e-05,2658.9,2658.8,0.08930936]
[1739194968226,1e-05,2658.9,2658.8,3.85039936]
[1739194968417,1e-05,2658.9,2658.8,0.08930936]
[1739194968633,1e-05,2658.9,2658.8,3.85039936]
[1739194969013,1e-05,2658.9,2658.8,0.08930936]
[1739194969212,1e-05,2658.9,2658.7,3.76111]
[1739194969412,1e-05,2658.9,2658.8,0.08930936]
[1739194969607,1e-05,2658.9,2658.4,3.76165]
[1739194969814,1e-05,2658.9,2658.5,3.85102506]
[1739194970143,1e-05,2658.9,2658.6,3.76136]
[1739194970353,1e-05,2658.9,2658.5,3.85098506]
[1739194970644,1e-05,2658.9,2658.6,0.08945316]
[1739194971249,1e-05,2658.9,2657.9,0.8131]
[1739194971250,3.76145,2658.6,2657.9,0.8131]
[1739194971425,3.76145,2658.6,2658.0,0.09014909]
[1739194971749,3.76158,2658.5,2658.0,0.09014909]
[1739194971926,7.52324,2658.5,2658.0,0.09014909]
[1739194972128,3.76182,2658.3,2657.8,3.76239]
[1739194972470,3.76158,2658.5,2657.8,3.76239]
[1739194972653,3.76166,2658.4,2657.9,0.09022103]
[1739194972817,3.76184,2658.3,2657.9,0.09022103]
[1739194973918,3.76158,2658.5,2657.9,0.09022103]
[1739194974376,3.7618,2658.3,2657.9,0.09022103]
[1739194975015,3.0,2658.6,2657.9,0.09022103]
[1739194975220,3.76185,2658.3,2657.8,3.76247]
[1739194975538,3.76185,2658.3,2658.0,0.09014909]
[1739194975748,3.76185,2658.3,2657.9,0.09022103]
[1739194976055,3.76185,2658.3,2658.0,0.09014909]
[1739194976222,3.76185,2658.3,2657.8,3.76242]
[1739194976552,3.76185,2658.3,2658.1,0.09076577]
[1739194976753,3.76185,2658.3,2657.8,7.52484]
[1739194976952,3.76185,2658.3,2658.2,0.09069384]
[1739194977155,3.76167,2658.4,2657.6,4.57576]
[1739194977371,3.7618,2658.3,2658.2,0.09069384]
[1739194977668,3.76183,2658.3,2658.2,0.09069384]
[1739194977822,3.76183,2658.3,2657.8,3.76248]
[1739194978019,3.76183,2658.3,2658.2,0.09069384]
[1739194978237,3.76183,2658.3,2657.7,3.7626]
[1739194978471,3.76183,2658.3,2658.2,0.09069384]
[1739194978672,3.76203,2658.2,2657.6,4.57581]
[1739194978938,3.76203,2658.2,2657.7,3.85364354]
[1739194979138,3.76194,2658.2,2657.7,3.85364354]
[1739194979442,3.76183,2658.3,2657.7,0.09105354]
[1739194979956,0.7971,2658.2,2657.7,3.85361354]
[1739194980167,4.55866,2658.5,2658.0,3.7622]
[1739194980373,8.32028,2658.5,2658.0,3.7622]
[1739194980678,8.32028,2658.5,2658.2,3.76185]
[1739194980679,0.7971,2658.5,2658.2,3.76185]
[1739194980860,0.7971,2658.8,2658.3,0.11387749]
[1739194981039,1e-05,2658.9,2658.7,3.76123]
[1739194981248,1e-05,2658.9,2658.7,3.76122]
[1739194981442,1e-05,2658.9,2658.8,3.85172173]
[1739194981645,1e-05,2658.9,2658.8,4.60802173]
[1739194982176,1e-05,2658.9,2658.8,0.09063173]
[1739194982382,1e-05,2658.9,2658.8,3.85172173]
[1739194982977,1e-05,2658.9,2658.8,4.60802173]
[1739194983177,1e-05,2658.9,2658.8,0.84693173]
[1739194983491,1e-05,2658.9,2658.8,0.09063173]
[1739194984185,1e-05,2658.9,2658.5,4.51771]
[1739194984394,3.76096,2658.9,2658.8,0.08996305]
[1739194984592,3.76116,2658.8,2658.1,4.51835]
[1739194984991,3.76097,2658.9,2658.3,3.7617]
[1739194985385,1e-05,2658.9,2658.3,3.7617]
[1739194985579,1e-05,2658.9,2658.5,3.76147]
[1739194985797,1e-05,2658.9,2658.4,3.76164]
[1739194985993,3.76096,2658.9,2658.4,3.76164]
[1739194986318,1e-05,2658.9,2658.5,3.76147]
[1739194986615,1e-05,2658.9,2658.5,3.76139]
[1739194987283,1e-05,2658.9,2658.5,7.52283]
[1739194987679,1e-05,2658.9,2658.5,3.76139]
[1739194988415,3.76123,2658.7,2658.6,0.09036127]
[1739194988716,3.76167,2658.4,2657.8,3.7624]
[1739194988886,3.76167,2658.4,2657.9,0.09056024]
[1739194989090,3.76167,2658.4,2657.9,3.85290024]
[1739194989331,4.55877,2658.4,2657.9,7.61519024]
[1739194989529,3.76197,2658.2,2657.9,0.09056024]
[1739194989707,3.76197,2658.2,2657.7,4.51887]
[1739194990027,8.32055,2658.4,2657.9,3.76235]
[1739194990340,3.7618,2658.3,2658.0,0.09058811]
[1739194990547,7.52373,2658.3,2658.0,0.09058811]
[1739194990826,3.7618,2658.3,2657.7,3.76255]
[1739194991027,3.7618,2658.3,2658.1,0.0906659]
[1739194991226,3.7618,2658.3,2657.7,3.76252]
[1739194991429,3.7618,2658.3,2657.8,3.76246]
[1739194991790,3.7618,2658.3,2657.9,0.09080978]
[1739194991993,3.76208,2658.1,2657.9,0.09080978]
[1739194992311,3.76244,2657.9,2657.4,0.7563]
[1739194992525,3.76244,2657.9,2657.5,0.09114751]
[1739194992898,3.76222,2658.0,2657.5,3.85405751]
[1739194993217,3.76237,2657.9,2657.5,0.09114751]
[1739194993407,3.76202,2658.2,2657.6,3.76271]
[1739194993732,3.7621,2658.1,2657.7,0.09113839]
[1739194994296,3.76237,2657.9,2657.7,0.09113839]
[1739194994496,7.52434,2658.1,2657.5,3.76292]
[1739194994696,7.52434,2658.1,2657.6,0.09121035]
[1739194994697,3.76227,2658.0,2657.6,0.09121035]
[1739194994944,3.76212,2658.1,2657.5,3.7628]
[1739194995246,3.76194,2658.2,2657.7,3.85376839]
[1739194995407,3.76194,2658.2,2657.6,3.85391035]
[1739194995608,3.76194,2658.2,2657.8,0.09106644]
[1739194995931,3.76188,2658.3,2657.4,0.7563]
[1739194995932,0.7971,2658.4,2657.9,0.09099449]
[1739194996140,0.7971,2658.4,2658.1,3.76198]
[1739194996431,3.76131,2658.7,2658.0,3.76222]
[1739194996432,0.8009,2658.7,2658.2,3.76194]
[1739194996638,0.8009,2658.7,2658.2,0.09075872]
[1739194996932,0.8009,2658.7,2658.3,3.7618]
[1739194997169,0.8009,2658.7,2658.4,0.09061487]
[1739194997534,3.76146,2658.6,2658.4,0.09061487]
[1739194997781,4.56213,2658.7,2658.4,0.09061487]
[1739194997964,3.8009,2658.7,2658.2,3.76192]
[1739194998151,3.8009,2658.7,2658.5,0.08990866]
[1739194998352,3.8009,2658.7,2658.2,3.76192]
[1739194998561,1e-05,2658.9,2658.6,0.08974191]
[1739194998747,3.0,2658.8,2658.1,3.76198]
[1739194998952,6.76114,2658.8,2658.7,0.08967001]
[1739194999274,1e-05,2658.9,2657.9,3.76226]
[1739194999481,3.76141,2658.6,2658.1,3.762]
[1739194999782,3.76152,2658.5,2658.2,0.09002957]
[1739195000070,3.76141,2658.6,2657.7,0.8024]
[1739195000269,3.76141,2658.6,2657.9,3.76223]
[1739195000469,3.76127,2658.7,2658.2,3.76185]
[1739195000676,7.52239,2658.8,2658.3,0.09017226]
[1739195000889,1e-05,2658.9,2658.5,3.76146]
[1739195001084,1e-05,2658.9,2658.7,3.76113]
[1739195001385,1e-05,2658.9,2658.8,0.08386231]
[1739195001885,1e-05,2658.9,2658.5,3.76151]
[1739195002183,1e-05,2658.9,2658.8,0.0896002]
[1739195002383,1e-05,2658.9,2658.3,0.8024]
[1739195002601,3.76127,2658.7,2658.1,3.76197]
[1739195002951,3.76127,2658.7,2658.2,3.76187]
[1739195003169,3.76127,2658.7,2658.2,0.09003167]
[1739195003481,3.76173,2658.4,2658.2,0.09003167]
[1739195003683,3.76196,2658.2,2657.8,3.76243]
[1739195003903,0.8052,2658.3,2657.9,0.09013766]
[1739195004183,3.76223,2658.0,2657.5,3.76286]
[1739195004374,3.762,2658.2,2657.5,3.76284]
[1739195004571,3.762,2658.2,2657.6,0.0903635]
[1739195004775,3.76222,2658.1,2657.6,0.0903635]
[1739195004962,3.762,2658.2,2657.7,3.76264]
[1739195005466,3.76169,2658.4,2657.9,3.76235]
[1739195005663,3.76169,2658.4,2658.0,0.09037023]
[1739195005871,3.76188,2658.3,2657.8,3.76244]
[1739195006064,3.76169,2658.4,2657.9,3.85271217]
[1739195006274,3.76169,2658.4,2657.9,7.61499217]
[1739195006451,3.7617,2658.4,2657.9,0.09044217]
[1739195006651,0.8052,2658.6,2657.9,0.09044217]
[1739195006888,3.76151,2658.5,2657.7,7.52511]
[1739195007084,7.52378,2658.3,2657.8,3.85302412]
[1739195007254,3.76187,2658.3,2657.8,0.09051412]
[1739195007450,3.76187,2658.3,2657.7,3.76255]
[1739195007656,1e-05,2658.9,2657.9,7.52472]
[1739195007957,1e-05,2658.9,2658.5,3.76146]
[1739195008482,1e-05,2658.9,2658.6,0.08991374]
[1739195008483,3.7611,2658.9,2658.6,0.08991374]
[1739195008684,1e-05,2658.9,2658.4,4.57154]
[1739195008871,1e-05,2658.9,2658.5,0.08978596]
[1739195009274,3.76099,2658.9,2658.5,0.08978596]
[1739195010887,1e-05,2658.9,2658.5,0.08978596]
[1739195011056,1e-05,2658.9,2658.7,3.76111]
[1739195011252,1e-05,2658.9,2658.8,4.6604804]
[1739195012020,1e-05,2658.9,2658.8,0.8993904]
[1739195013593,1e-05,2658.9,2658.8,0.0894904]
[1739195014094,1e-05,2658.9,2658.8,0.08910615]
[1739195014261,1e-05,2658.9,2658.8,3.85019615]
[1739195014661,1e-05,2658.9,2658.8,0.08910615]
[1739195015763,1e-05,2658.9,2658.5,8.3328]
[1739195015764,1e-05,2658.9,2658.5,3.76142]
[1739195015967,1e-05,2658.9,2658.8,0.08910615]
[1739195016170,1e-05,2658.9,2658.3,0.8099]
[1739195016390,1e-05,2658.9,2658.5,3.7615]
[1739195016589,1e-05,2658.9,2657.8,0.8099]
[1739195016590,0.8052,2658.8,2657.8,0.8099]
[1739195016871,0.8052,2658.2,2657.5,0.8099]
[1739195017066,0.8052,2658.2,2657.8,3.76241]
[1739195017267,0.8052,2658.2,2657.7,7.5251]
[1739195017510,0.8052,2658.2,2657.7,3.76253]
[1739195017882,0.8052,2658.2,2657.8,3.76243]
[1739195018079,3.76232,2658.0,2657.8,0.08982536]
[1739195018380,0.8052,2658.2,2657.5,4.57272]
[1739195018598,6.76178,2658.4,2657.9,0.08975341]
[1739195018906,3.76183,2658.3,2657.8,3.76249]
[1739195019097,3.76183,2658.3,2657.9,0.08975341]
[1739195019673,6.76175,2658.4,2657.8,3.7624]
[1739195019874,6.76175,2658.4,2658.0,0.08968147]
[1739195020088,6.76175,2658.4,2657.7,3.76257]
[1739195020299,6.76175,2658.4,2657.8,3.76248]
[1739195020673,10.52349,2658.4,2657.9,0.08975341]
[1739195021508,4.56673,2658.5,2657.9,3.85200341]
[1739195022022,3.76167,2658.4,2657.9,3.85200341]
[1739195023075,3.76146,2658.6,2658.1,3.76207]
[1739195023275,3.76153,2658.5,2658.0,3.76221]
[1739195023473,3.76167,2658.4,2658.0,0.08968147]
[1739195023707,3.76167,2658.4,2658.2,0.08997686]
[1739195024007,4.52289,2658.8,2658.2,3.76186]
[1739195024213,3.76134,2658.7,2658.3,0.08990494]
[1739195024584,3.76134,2658.7,2658.2,3.76194]
[1739195024785,3.0,2658.8,2658.4,0.08983302]
[1739195024994,3.0,2658.8,2658.4,3.76156]
[1739195025212,1e-05,2658.9,2658.6,3.76134]
[1739195025412,1e-05,2658.9,2658.5,0.8996611]
[1739195025617,3.76109,2658.9,2658.7,0.08961729]
[1739195025782,3.76109,2658.9,2658.6,0.0896892]
[1739195025983,3.76109,2658.9,2658.8,0.0895454]
[1739195026185,3.76109,2658.9,2658.7,0.08961729]
[1739195026380,3.76109,2658.9,2658.8,0.0895454]
[1739195026822,1e-05,2658.9,2658.2,0.8099]
[1739195027116,3.76141,2658.6,2658.2,0.8099]
[1739195027317,7.52239,2658.8,2658.2,4.57184]
[1739195027477,1e-05,2658.9,2658.2,0.8099]
[1739195027680,7.52289,2658.6,2658.1,3.76205]
[1739195027906,3.76141,2658.6,2658.1,3.76205]
[1739195028127,3.76119,2658.8,2658.2,3.76182]
[1739195028285,3.76119,2658.8,2658.1,3.76205]
[1739195028481,3.76109,2658.8,2658.1,3.76205]
[1739195028677,3.76167,2658.4,2658.0,0.8099]
[1739195028901,3.76167,2658.4,2657.9,3.76223]
[1739195029181,3.76167,2658.4,2657.9,3.7623]
[1739195029707,7.52343,2658.4,2657.9,3.76224]
[1739195030024,3.76182,2658.3,2657.4,0.8099]
[1739195030190,3.76246,2657.9,2657.4,0.8099]
[1739195030980,3.76245,2657.9,2657.3,3.76321]
[1739195031198,3.76226,2658.0,2657.4,3.76298]
[1739195031892,3.76226,2658.0,2657.5,3.7628]
[1739195032096,3.76216,2658.1,2657.5,3.7628]
[1739195032684,3.76216,2658.1,2657.3,3.7631]
[1739195032685,3.76237,2657.9,2657.3,3.7631]
[1739195032887,3.76237,2657.9,2657.4,3.76301]
[1739195033197,3.76237,2657.9,2657.5,0.09048048]
[1739195033582,3.76226,2658.0,2657.5,3.85339048]
[1739195034104,3.76216,2658.1,2657.6,3.76278]
[1739195034309,7.52432,2658.1,2657.5,3.85339048]
[1739195034621,3.76223,2658.0,2657.6,0.08721308]
[1739195035002,4.52365,2658.2,2657.6,0.08721308]
[1739195035205,3.76175,2658.4,2657.8,3.76251]
[1739195035408,3.76175,2658.4,2657.9,3.76227]
[1739195035725,3.76175,2658.4,2657.9,3.84926723]
[1739195035890,3.76175,2658.4,2657.9,3.84929723]
[1739195036287,3.76175,2658.4,2657.9,0.08699723]
[1739195036505,3.76187,2658.3,2657.9,0.08699723]
[1739195036790,3.7618,2658.3,2657.9,0.08699723]
[1739195036989,3.76175,2658.4,2657.9,0.08699723]
[1739195037186,3.76191,2658.3,2657.9,0.08699723]
[1739195037387,3.76195,2658.2,2657.7,0.8099]
[1739195037593,3.76229,2658.0,2657.8,0.08706917]
[1739195037831,3.76236,2657.9,2657.8,0.08706917]
[1739195038013,3.76229,2658.0,2657.4,4.55317]
[1739195038216,1e-05,2658.9,2657.9,2.53717358]
[1739195038391,1e-05,2658.9,2657.7,0.7902]
[1739195038392,1e-05,2658.9,2658.8,6.31200932]
[1739195038598,1e-05,2658.9,2658.8,7.10220932]
[1739195038814,1e-05,2658.9,2658.8,4.63770985]
[1739195040006,1e-05,2658.9,2658.8,4.67531172]
[1739195040207,1e-05,2658.9,2658.8,7.77623104]
[1739195040533,1e-05,2658.9,2658.8,11.11522917]
[1739195041032,1e-06,2659.0,2658.9,5.10115]
[1739195041406,1e-06,2659.0,2658.9,5.18749796]
[1739195041606,1e-06,2659.0,2658.9,5.22509636]
[1739195041817,1e-06,2659.0,2658.9,4.63749796]
[1739195042132,1e-06,2659.0,2658.9,4.67509764]
[1739195042912,1e-06,2659.0,2658.9,5.22509764]
[1739195043322,1e-06,2659.0,2658.9,4.67509764]
[1739195043628,1e-06,2659.0,2658.9,4.63749796]
[1739195044412,1e-06,2659.0,2658.9,4.67510476]
[1739195044610,1e-06,2659.0,2658.9,4.63749796]
[1739195044809,1e-06,2659.0,2658.9,4.67510391]
[1739195045001,1e-06,2659.0,2658.9,4.63749796]
[1739195049853,1e-06,2659.0,2658.9,0.08634796]
[1739195050064,1e-06,2659.0,2658.9,3.84729796]
[1739195057079,1e-06,2659.0,2658.9,4.63259796]
[1739195057540,1e-06,2659.0,2658.9,4.67019676]
[1739195057740,1e-06,2659.0,2658.9,6.85586543]
[1739195058837,1e-06,2659.0,2658.9,6.81826663]
[1739195059644,1e-06,2659.0,2658.9,6.85586546]
[1739195060136,1e-06,2659.0,2658.9,6.81826663]
[1739195060345,1e-06,2659.0,2658.9,11.14597598]
[1739195060646,1e-06,2659.0,2658.9,15.08737715]
[1739195060845,1e-06,2659.0,2658.9,19.96837715]
[1739195061042,0.005,2660.0,2659.9,3.75953]
[1739195061444,0.005,2660.0,2659.9,0.0845066]
[1739195062058,0.005,2660.0,2659.9,3.8440366]
[1739195062212,0.005,2660.0,2659.9,0.0845066]
[1739195062816,0.8178,2660.0,2659.9,0.0845066]
[1739195063248,0.8178,2660.0,2659.6,3.75985]
[1739195063547,0.8178,2660.0,2659.9,0.0845066]
[1739195063722,0.8178,2660.0,2659.4,0.7853]
[1739195063916,0.8178,2660.0,2659.9,0.0845066]
[1739195065048,0.8178,2660.0,2659.4,4.54547]
[1739195065250,0.8178,2660.0,2659.9,0.0845066]
[1739195065550,0.8178,2660.0,2659.6,3.75989]
[1739195065712,0.8178,2660.0,2659.9,0.0845066]
[1739195065920,0.8178,2660.0,2659.6,3.75988]
[1739195066134,0.8178,2660.0,2659.9,0.08441683]
[1739195066656,0.8178,2660.0,2659.5,3.76001]
[1739195066854,0.8178,2660.0,2659.9,0.08441683]
[1739195067152,0.8178,2660.0,2659.6,3.75996]
[1739195067451,0.8178,2660.0,2659.6,3.75986]
[1739195067657,0.8178,2660.0,2659.7,3.84434051]
[1739195068424,0.8178,2660.0,2659.7,0.08456051]
[1739195069628,0.8178,2660.0,2659.4,7.52033]
[1739195069851,4.57727,2660.0,2659.8,0.08448867]
[1739195070052,0.8178,2660.0,2659.6,3.75983]
[1739195070248,0.8178,2660.0,2659.1,4.54593]
[1739195070249,0.8178,2660.0,2659.9,0.08443678]
[1739195070559,4.57719,2660.0,2659.4,3.76014]
[1739195070764,4.57719,2660.0,2659.9,0.08443678]
[1739195070765,0.8178,2660.0,2659.9,0.08443678]
[1739195070984,0.005,2660.0,2659.9,3.75953]
[1739195071265,0.005,2660.0,2659.9,0.08443678]
[1739195074231,0.005,2660.0,2659.7,3.75981]
[1739195074449,0.005,2660.0,2659.8,0.0844388]
[1739195074763,0.8292,2660.0,2659.8,0.0844388]
[1739195074958,0.8292,2660.0,2659.6,3.75986]
[1739195075166,4.58859,2660.0,2659.9,0.08436696]
[1739195075464,3.75953,2659.9,2659.4,4.13679]
[1739195075763,4.58859,2660.0,2659.5,3.76007]
[1739195075962,4.58859,2660.0,2659.4,0.3766]
[1739195076168,3.75996,2659.6,2659.1,0.832]
[1739195076533,3.75977,2659.8,2659.1,4.59255]
[1739195077072,3.75977,2659.8,2659.3,3.76037]
[1739195077450,3.75977,2659.8,2659.3,7.52069]
[1739195077832,8.34819,2660.0,2659.4,3.76017]
[1739195078028,4.58868,2660.0,2659.3,3.76032]
[1739195078265,4.58868,2660.0,2659.6,3.75995]
[1739195078455,4.58868,2660.0,2659.4,3.8432544]
[1739195078654,4.58868,2660.0,2659.7,0.08290884]
[1739195078872,0.8292,2660.0,2659.6,3.75987]
[1739195079172,0.005,2660.0,2659.7,3.84264884]
[1739195081259,3.76441,2660.0,2659.7,0.08290884]
[1739195081772,3.76441,2660.0,2659.5,3.76]
[1739195081940,0.005,2660.0,2659.6,3.84291069]
[1739195082340,0.005,2660.0,2659.7,3.75973]
[1739195082567,0.005,2660.0,2659.8,0.08284699]
[1739195082775,0.005,2660.0,2659.5,3.76]
[1739195083071,0.005,2660.0,2659.6,0.08299069]
[1739195083271,3.76442,2660.0,2659.6,0.08299069]
[1739195083469,0.005,2660.0,2659.6,0.08299069]
[1739195083668,3.75955,2659.9,2659.6,0.08299069]
[1739195083848,3.75955,2659.9,2659.4,4.54469]
[1739195084171,3.75955,2659.9,2659.5,3.76008]
[1739195084475,3.76442,2660.0,2659.6,0.08299069]
[1739195084640,3.75982,2659.7,2659.6,0.08299069]
[1739195084977,3.75982,2659.7,2659.1,4.54507]
[1739195085141,0.7856,2659.8,2659.4,3.76017]
[1739195085341,0.005,2660.0,2659.5,3.84315735]
[1739195085560,3.005,2660.0,2659.5,4.62765735]
[1739195085752,3.005,2660.0,2659.5,8.38768735]
[1739195085953,3.005,2660.0,2659.6,3.75989]
[1739195086273,3.005,2660.0,2659.7,0.08299365]
[1739195086679,0.005,2660.0,2659.7,3.75971]
[1739195086884,0.005,2660.0,2659.8,0.08292181]
[1739195087344,0.005,2660.0,2659.8,3.75962]
[1739195087546,0.005,2660.0,2659.9,0.08273526]
[1739195087746,0.005,2660.0,2659.7,3.75968]
[1739195088075,0.005,2660.0,2659.8,0.0828071]
[1739195088479,0.005,2660.0,2659.7,3.75968]
[1739195088673,0.005,2660.0,2659.9,0.08273526]
[1739195088890,0.005,2660.0,2659.8,0.0828071]
[1739195089039,0.005,2660.0,2659.9,0.08273526]
[1739195089246,0.005,2660.0,2659.6,3.75995]
[1739195089442,0.005,2660.0,2659.5,4.54457]
[1739195089443,0.005,2660.0,2659.7,3.84256894]
[1739195089648,0.005,2660.0,2659.7,0.08287894]
[1739195089863,0.005,2660.0,2659.7,3.84268894]
[1739195090142,0.005,2660.0,2659.8,3.75959]
[1739195090342,0.005,2660.0,2659.9,0.08273526]
[1739195091178,0.7906,2660.0,2659.6,3.75985]
[1739195091690,4.55002,2660.0,2659.7,0.08287894]
[1739195092101,4.55002,2660.0,2659.4,7.52032]
[1739195092694,4.55002,2660.0,2659.5,3.84296781]
[1739195092903,0.7906,2660.0,2659.6,3.75994]
[1739195093068,0.7906,2660.0,2659.7,3.75978]
[1739195093402,0.7906,2660.0,2659.7,3.84266891]
[1739195093568,0.7906,2660.0,2659.7,0.08288891]
[1739195093767,0.7906,2660.0,2659.4,3.76014]
[1739195093967,0.7906,2660.0,2659.5,3.84317747]
[1739195094168,0.7906,2660.0,2659.5,0.08307747]
[1739195094398,0.7906,2660.0,2659.6,3.75994]
[1739195094698,0.7906,2660.0,2659.7,0.08293377]
[1739195094915,0.7906,2660.0,2659.7,3.84274377]
[1739195095090,0.005,2660.0,2659.8,3.75968]
[1739195095492,0.005,2660.0,2659.9,0.08279009]
[1739195095995,0.005,2660.0,2659.7,3.75981]
[1739195096178,0.005,2660.0,2659.8,0.08286193]
[1739195096379,0.005,2660.0,2659.7,3.75981]
[1739195096785,0.005,2660.0,2659.8,0.08286193]
[1739195097202,0.005,2660.0,2659.7,3.75981]
[1739195097403,0.005,2660.0,2659.8,0.08286193]
[1739195097603,0.005,2660.0,2659.7,3.75981]
[1739195097801,0.005,2660.0,2659.8,0.08286193]
[1739195098104,0.005,2660.0,2659.7,3.75981]
[1739195098310,0.005,2660.0,2659.9,0.08279009]